[Event "Late-Titled-Tuesday-Blitz-February-13-2024"]
[Site "Chess.com"]
[Date "2024.02.13"]
[Round "7"]
[White "zverr1"]
[Black "jcmesafischer"]
[Result "0-1"]
[WhiteElo "2546"]
[BlackElo "2384"]
[TimeControl "180+1"]
[EndTime "15:18:09 PST"]
[Termination "jcmesafischer won on time"]

1. e4 {[%clk 0:03:00.9]} 1... c5 {[%clk 0:02:58.3]} 2. Nf3 {[%clk 0:03:00.6]}
2... d6 {[%clk 0:02:57.5]} 3. d4 {[%clk 0:03:00.6]} 3... cxd4 {[%clk 0:02:57.8]}
4. Nxd4 {[%clk 0:03:01.5]} 4... Nf6 {[%clk 0:02:58]} 5. Nc3 {[%clk 0:03:02]}
5... a6 {[%clk 0:02:55.6]} 6. h3 {[%clk 0:03:02.1]} 6... e5 {[%clk 0:02:55.5]}
7. Nde2 {[%clk 0:03:02.2]} 7... Be6 {[%clk 0:02:55.4]} 8. g4 {[%clk 0:03:02.4]}
8... h6 {[%clk 0:02:52]} 9. Bg2 {[%clk 0:03:02.5]} 9... b5 {[%clk 0:02:51.4]}
10. Be3 {[%clk 0:03:00.1]} 10... Nbd7 {[%clk 0:02:50.1]} 11. O-O {[%clk
0:02:44.4]} 11... Be7 {[%clk 0:02:47.4]} 12. Qd2 {[%clk 0:02:33.3]} 12... Qc7
{[%clk 0:02:36.1]} 13. a4 {[%clk 0:02:12.2]} 13... b4 {[%clk 0:02:28.4]} 14. Nd5
{[%clk 0:02:12.4]} 14... Bxd5 {[%clk 0:02:27.5]} 15. exd5 {[%clk 0:02:12.6]}
15... Rb8 {[%clk 0:02:15.6]} 16. c3 {[%clk 0:01:47.4]} 16... Nc5 {[%clk
0:02:14.7]} 17. cxb4 {[%clk 0:01:01]} 17... Nb3 {[%clk 0:02:14.3]} 18. Rfc1
{[%clk 0:01:00.8]} 18... Nxc1 {[%clk 0:01:55.7]} 19. Rxc1 {[%clk 0:01:01.7]}
19... Qb7 {[%clk 0:01:55.7]} 20. b5 {[%clk 0:00:39.1]} 20... axb5 {[%clk
0:01:50.1]} 21. a5 {[%clk 0:00:39.5]} 21... b4 {[%clk 0:01:49.3]} 22. Rc6 {[%clk
0:00:32.1]} 22... Ra8 {[%clk 0:01:39.6]} 23. Bb6 {[%clk 0:00:18.8]} 23... O-O
{[%clk 0:01:17.1]} 24. Rc7 {[%clk 0:00:18.7]} 24... Qxc7 {[%clk 0:01:04.3]} 25.
Bxc7 {[%clk 0:00:18.9]} 25... Rfc8 {[%clk 0:01:01.3]} 26. Bb6 {[%clk 0:00:17.5]}
26... Nd7 {[%clk 0:00:49]} 27. Qxb4 {[%clk 0:00:13.4]} 27... Rab8 {[%clk
0:00:49.7]} 28. Ng3 {[%clk 0:00:09]} 28... Bd8 {[%clk 0:00:28.1]} 29. Qxd6
{[%clk 0:00:08.3]} 29... Nxb6 {[%clk 0:00:27.7]} 30. axb6 {[%clk 0:00:08]} 30...
Rxb6 {[%clk 0:00:27.9]} 31. Qxe5 {[%clk 0:00:07.3]} 31... Bf6 {[%clk 0:00:27.4]}
32. Qf5 {[%clk 0:00:04.8]} 32... Rc1+ {[%clk 0:00:27.1]} 33. Kh2 {[%clk
0:00:04.8]} 33... Rxb2 {[%clk 0:00:26]} 34. Ne4 {[%clk 0:00:04.8]} 34... Bh4
{[%clk 0:00:17.6]} 35. Nd6 {[%clk 0:00:04.6]} 35... Rxf2 {[%clk 0:00:12.4]} 36.
Qe4 {[%clk 0:00:02.3]} 36... Rc3 {[%clk 0:00:10.7]} 37. Qe8+ {[%clk 0:00:02.3]}
37... Kh7 {[%clk 0:00:10.6]} 38. Qe4+ {[%clk 0:00:02]} 38... g6 {[%clk 0:00:10]}
39. Nf5 {[%clk 0:00:02.7]} 39... gxf5 {[%clk 0:00:09]} 40. gxf5 {[%clk
0:00:03.1]} 40... Bg3+ {[%clk 0:00:09.5]} 41. Kg1 {[%clk 0:00:01.8]} 41... Rc1+
{[%clk 0:00:10.4]} 0-1

[Event "Late-Titled-Tuesday-Blitz-February-13-2024"]
[Site "Chess.com"]
[Date "2024.02.13"]
[Round "7"]
[White "DeArron_Fox"]
[Black "jcibarra"]
[Result "0-1"]
[WhiteElo "2522"]
[BlackElo "2905"]
[TimeControl "180+1"]
[EndTime "15:18:12 PST"]
[Termination "jcibarra won on time"]

1. d4 {[%clk 0:03:00.9]} 1... Nf6 {[%clk 0:02:59.6]} 2. c4 {[%clk 0:03:01.1]}
2... d6 {[%clk 0:02:55.3]} 3. Nc3 {[%clk 0:02:59.4]} 3... e5 {[%clk 0:02:55.4]}
4. Nf3 {[%clk 0:02:58.5]} 4... e4 {[%clk 0:02:55.6]} 5. Nd2 {[%clk 0:02:58.1]}
5... Qe7 {[%clk 0:02:54.7]} 6. Nb3 {[%clk 0:02:58]} 6... h6 {[%clk 0:02:54.3]}
7. g3 {[%clk 0:02:56.3]} 7... c6 {[%clk 0:02:53.1]} 8. Bg2 {[%clk 0:02:56.3]}
8... Bf5 {[%clk 0:02:52.8]} 9. O-O {[%clk 0:02:56]} 9... g6 {[%clk 0:02:52.2]}
10. Bf4 {[%clk 0:02:52.3]} 10... g5 {[%clk 0:02:47.9]} 11. Bc1 {[%clk
0:02:36.4]} 11... Bg7 {[%clk 0:02:46.8]} 12. f3 {[%clk 0:02:36.1]} 12... e3
{[%clk 0:02:41]} 13. Qe1 {[%clk 0:02:28.4]} 13... Bc2 {[%clk 0:02:24]} 14. Nd1
{[%clk 0:02:26.9]} 14... Bxd1 {[%clk 0:02:20.5]} 15. Qxd1 {[%clk 0:02:27.8]}
15... O-O {[%clk 0:02:20.6]} 16. Qd3 {[%clk 0:02:06.3]} 16... Re8 {[%clk
0:02:19.9]} 17. Rb1 {[%clk 0:02:06.7]} 17... Na6 {[%clk 0:02:17.4]} 18. a3
{[%clk 0:02:03.5]} 18... d5 {[%clk 0:02:12.9]} 19. c5 {[%clk 0:01:59.4]} 19...
Nc7 {[%clk 0:02:03.9]} 20. Na1 {[%clk 0:01:58.6]} 20... Nd7 {[%clk 0:01:37]} 21.
Nc2 {[%clk 0:01:56.9]} 21... Rad8 {[%clk 0:01:23.8]} 22. Bxe3 {[%clk 0:01:37.5]}
22... b6 {[%clk 0:01:17.9]} 23. b4 {[%clk 0:01:36.4]} 23... Nf8 {[%clk 0:01:12]}
24. Rfe1 {[%clk 0:01:33.4]} 24... bxc5 {[%clk 0:01:11.6]} 25. bxc5 {[%clk
0:01:29.9]} 25... Nfe6 {[%clk 0:01:11.4]} 26. Bf2 {[%clk 0:01:29.6]} 26... Rb8
{[%clk 0:01:09.6]} 27. e4 {[%clk 0:01:23.4]} 27... dxe4 {[%clk 0:01:08.1]} 28.
fxe4 {[%clk 0:01:23.7]} 28... Rbd8 {[%clk 0:01:07.2]} 29. Qc4 {[%clk 0:00:41.6]}
29... Qd7 {[%clk 0:00:53.2]} 30. Rbd1 {[%clk 0:00:26.8]} 30... g4 {[%clk
0:00:53.5]} 31. d5 {[%clk 0:00:18.8]} 31... Ng5 {[%clk 0:00:53.5]} 32. Nb4
{[%clk 0:00:09.3]} 32... cxd5 {[%clk 0:00:46.9]} 33. exd5 {[%clk 0:00:10.2]}
33... Qf5 {[%clk 0:00:43]} 34. d6 {[%clk 0:00:06.3]} 34... Nce6 {[%clk
0:00:38.1]} 35. c6 {[%clk 0:00:02.9]} 35... Nf3+ {[%clk 0:00:07.3]} 36. Bxf3
{[%clk 0:00:02.8]} 36... gxf3 {[%clk 0:00:08.2]} 37. c7 {[%clk 0:00:03.3]} 37...
Ra8 {[%clk 0:00:04.2]} 38. d7 {[%clk 0:00:03.2]} 38... Nxc7 {[%clk 0:00:03]} 39.
Qxc7 {[%clk 0:00:02.2]} 39... Qh3 {[%clk 0:00:01.7]} 0-1

[Event "Late-Titled-Tuesday-Blitz-February-13-2024"]
[Site "Chess.com"]
[Date "2024.02.13"]
[Round "7"]
[White "xakevicius91"]
[Black "martinmena"]
[Result "1-0"]
[WhiteElo "2532"]
[BlackElo "2171"]
[TimeControl "180+1"]
[EndTime "15:18:16 PST"]
[Termination "xakevicius91 won by checkmate"]

1. e4 {[%clk 0:03:00.9]} 1... c6 {[%clk 0:02:58.9]} 2. d4 {[%clk 0:03:00.6]}
2... d5 {[%clk 0:02:59.8]} 3. e5 {[%clk 0:03:00.5]} 3... Bf5 {[%clk 0:02:59.1]}
4. Nd2 {[%clk 0:03:00.8]} 4... e6 {[%clk 0:02:57.8]} 5. Nb3 {[%clk 0:03:00.5]}
5... a5 {[%clk 0:02:43.7]} 6. a4 {[%clk 0:02:58.7]} 6... Bb4+ {[%clk 0:02:39.3]}
7. c3 {[%clk 0:02:58.2]} 7... Be7 {[%clk 0:02:37.1]} 8. Nf3 {[%clk 0:02:57.8]}
8... h5 {[%clk 0:02:32.7]} 9. Be2 {[%clk 0:02:55.6]} 9... Nh6 {[%clk 0:02:29.8]}
10. O-O {[%clk 0:02:55.3]} 10... Bg6 {[%clk 0:02:23.6]} 11. Ne1 {[%clk 0:02:55]}
11... Nf5 {[%clk 0:02:20.5]} 12. Nd3 {[%clk 0:02:50.5]} 12... Bg5 {[%clk
0:02:20.4]} 13. f4 {[%clk 0:02:43.5]} 13... Be7 {[%clk 0:02:18.3]} 14. Ne1
{[%clk 0:02:38.7]} 14... b6 {[%clk 0:02:09.2]} 15. Nf3 {[%clk 0:02:37.1]} 15...
Nd7 {[%clk 0:01:56.9]} 16. Bd2 {[%clk 0:02:24.8]} 16... Qc7 {[%clk 0:01:51.9]}
17. c4 {[%clk 0:02:24]} 17... dxc4 {[%clk 0:01:40.2]} 18. Bxc4 {[%clk
0:02:24.9]} 18... Bb4 {[%clk 0:01:38.2]} 19. Rc1 {[%clk 0:02:22.5]} 19... Bxd2
{[%clk 0:01:36.1]} 20. Qxd2 {[%clk 0:02:23.4]} 20... Qb7 {[%clk 0:01:30.6]} 21.
Qe2 {[%clk 0:02:20.1]} 21... O-O {[%clk 0:01:27.8]} 22. Rfd1 {[%clk 0:02:18.1]}
22... Rab8 {[%clk 0:01:21.9]} 23. Bd3 {[%clk 0:02:13.3]} 23... Ne7 {[%clk
0:01:00.4]} 24. Ng5 {[%clk 0:02:02.8]} 24... Bxd3 {[%clk 0:00:57.5]} 25. Qxd3
{[%clk 0:02:03.7]} 25... g6 {[%clk 0:00:38.7]} 26. Nd2 {[%clk 0:01:57.5]} 26...
c5 {[%clk 0:00:37.4]} 27. Nde4 {[%clk 0:01:56.6]} 27... Nf5 {[%clk 0:00:22.6]}
28. dxc5 {[%clk 0:01:47.8]} 28... Nxc5 {[%clk 0:00:22.7]} 29. Nf6+ {[%clk
0:01:42.1]} 29... Kg7 {[%clk 0:00:22.6]} 30. Qe2 {[%clk 0:01:36]} 30... Rfd8
{[%clk 0:00:18.9]} 31. Qb5 {[%clk 0:01:05.4]} 31... Ne3 {[%clk 0:00:13.7]} 32.
Qe2 {[%clk 0:00:52.7]} 32... Nxd1 {[%clk 0:00:13.4]} 33. Rxd1 {[%clk 0:00:53.6]}
33... Rxd1+ {[%clk 0:00:12.1]} 34. Qxd1 {[%clk 0:00:53.7]} 34... Qc7 {[%clk
0:00:10]} 35. Nxh5+ {[%clk 0:00:43]} 35... gxh5 {[%clk 0:00:09.8]} 36. Qxh5
{[%clk 0:00:43.9]} 36... Rh8 {[%clk 0:00:09.3]} 37. Qg4 {[%clk 0:00:44.4]} 37...
Kf8 {[%clk 0:00:07.7]} 38. Nf3 {[%clk 0:00:40.4]} 38... Qd7 {[%clk 0:00:07.3]}
39. h4 {[%clk 0:00:38.9]} 39... Qd1+ {[%clk 0:00:06.7]} 40. Kh2 {[%clk
0:00:38.9]} 40... Ne4 {[%clk 0:00:06.8]} 41. f5 {[%clk 0:00:31.8]} 41... exf5
{[%clk 0:00:06.1]} 42. Qxf5 {[%clk 0:00:31]} 42... Nc5 {[%clk 0:00:05.1]} 43.
Ng5 {[%clk 0:00:24.1]} 43... Qd7 {[%clk 0:00:03.7]} 44. e6 {[%clk 0:00:21]}
44... Nxe6 {[%clk 0:00:03.5]} 45. Qf6 {[%clk 0:00:19.9]} 45... Qe7 {[%clk
0:00:02.9]} 46. Qxh8# {[%clk 0:00:13.6]} 1-0

[Event "Late-Titled-Tuesday-Blitz-February-13-2024"]
[Site "Chess.com"]
[Date "2024.02.13"]
[Round "7"]
[White "ImportedItalianMaple"]
[Black "Supelyel"]
[Result "0-1"]
[WhiteElo "2502"]
[BlackElo "2397"]
[TimeControl "180+1"]
[EndTime "15:18:17 PST"]
[Termination "Supelyel won on time"]

1. Nf3 {[%clk 0:03:00.9]} 1... Nf6 {[%clk 0:02:58.9]} 2. g3 {[%clk 0:03:00.4]}
2... d6 {[%clk 0:02:58.9]} 3. d4 {[%clk 0:02:59.1]} 3... Nbd7 {[%clk 0:02:58.6]}
4. Bg2 {[%clk 0:02:59.4]} 4... e5 {[%clk 0:02:58.5]} 5. O-O {[%clk 0:02:59.8]}
5... Be7 {[%clk 0:02:58.2]} 6. c4 {[%clk 0:02:59]} 6... O-O {[%clk 0:02:57.7]}
7. Nc3 {[%clk 0:02:59.1]} 7... c6 {[%clk 0:02:57.1]} 8. e4 {[%clk 0:02:59.2]}
8... a6 {[%clk 0:02:55.5]} 9. b3 {[%clk 0:02:54.5]} 9... b5 {[%clk 0:02:49]} 10.
cxb5 {[%clk 0:02:38.4]} 10... axb5 {[%clk 0:02:48.6]} 11. Re1 {[%clk 0:02:37.3]}
11... Bb7 {[%clk 0:02:47.4]} 12. Bb2 {[%clk 0:02:36]} 12... Re8 {[%clk
0:02:29.5]} 13. Rc1 {[%clk 0:02:24.5]} 13... Qb8 {[%clk 0:02:21]} 14. a4 {[%clk
0:02:11.9]} 14... b4 {[%clk 0:01:56.2]} 15. Nb1 {[%clk 0:02:06.2]} 15... exd4
{[%clk 0:01:52]} 16. Nxd4 {[%clk 0:02:04.6]} 16... c5 {[%clk 0:01:52.4]} 17. Nf5
{[%clk 0:02:03.5]} 17... Bf8 {[%clk 0:01:50.3]} 18. Nd2 {[%clk 0:01:56.3]} 18...
Ra6 {[%clk 0:01:41.9]} 19. Qc2 {[%clk 0:01:50.5]} 19... Qa8 {[%clk 0:01:39.3]}
20. f3 {[%clk 0:01:25.3]} 20... g6 {[%clk 0:01:37.6]} 21. Ne3 {[%clk 0:01:24.5]}
21... Bh6 {[%clk 0:00:57.3]} 22. Rcd1 {[%clk 0:01:17.7]} 22... d5 {[%clk
0:00:57.3]} 23. Bf1 {[%clk 0:01:03]} 23... Rae6 {[%clk 0:00:51.6]} 24. Bb5
{[%clk 0:00:49.9]} 24... dxe4 {[%clk 0:00:40]} 25. f4 {[%clk 0:00:49.5]} 25...
Bc6 {[%clk 0:00:33.7]} 26. Bc4 {[%clk 0:00:41.6]} 26... R6e7 {[%clk 0:00:31.4]}
27. Ndf1 {[%clk 0:00:38.4]} 27... Bg7 {[%clk 0:00:31.9]} 28. Rd2 {[%clk
0:00:37.6]} 28... Nb6 {[%clk 0:00:29.5]} 29. Be2 {[%clk 0:00:28.6]} 29... Nfd5
{[%clk 0:00:27]} 30. Red1 {[%clk 0:00:23.3]} 30... Nc3 {[%clk 0:00:22.2]} 31.
Bxc3 {[%clk 0:00:22.2]} 31... bxc3 {[%clk 0:00:19.9]} 32. Rd6 {[%clk 0:00:21.9]}
32... Bd4 {[%clk 0:00:18.5]} 33. R1xd4 {[%clk 0:00:15.5]} 33... cxd4 {[%clk
0:00:18.8]} 34. Rxd4 {[%clk 0:00:16]} 34... Nd5 {[%clk 0:00:18.8]} 35. Bc4
{[%clk 0:00:14.3]} 35... Rc8 {[%clk 0:00:16.8]} 36. Nxd5 {[%clk 0:00:12.9]}
36... Bxd5 {[%clk 0:00:17]} 37. Qxc3 {[%clk 0:00:12.5]} 37... Bxc4 {[%clk
0:00:13.9]} 38. Rxc4 {[%clk 0:00:13.4]} 38... Rxc4 {[%clk 0:00:13.6]} 39. Qxc4
{[%clk 0:00:14.3]} 39... e3 {[%clk 0:00:13.8]} 40. Qc5 {[%clk 0:00:12.2]} 40...
Qe4 {[%clk 0:00:11.5]} 41. Qc8+ {[%clk 0:00:06]} 41... Kg7 {[%clk 0:00:11.4]}
42. Qc3+ {[%clk 0:00:06.7]} 42... f6 {[%clk 0:00:11.6]} 43. Qe1 {[%clk
0:00:06.3]} 43... e2 {[%clk 0:00:11.3]} 44. Nd2 {[%clk 0:00:06.8]} 44... Qe3+
{[%clk 0:00:11.9]} 45. Kg2 {[%clk 0:00:06.8]} 45... Qxd2 {[%clk 0:00:12.6]} 0-1

[Event "Late-Titled-Tuesday-Blitz-February-13-2024"]
[Site "Chess.com"]
[Date "2024.02.13"]
[Round "7"]
[White "terrortoast"]
[Black "Cosi43"]
[Result "1-0"]
[WhiteElo "2484"]
[BlackElo "2596"]
[TimeControl "180+1"]
[EndTime "15:18:19 PST"]
[Termination "terrortoast won on time"]

1. d4 {[%clk 0:03:00.9]} 1... d5 {[%clk 0:02:53.7]} 2. c4 {[%clk 0:03:00.8]}
2... Nc6 {[%clk 0:02:53.9]} 3. Nf3 {[%clk 0:03:00.3]} 3... Bg4 {[%clk
0:02:53.2]} 4. cxd5 {[%clk 0:02:56.3]} 4... Bxf3 {[%clk 0:02:53.5]} 5. gxf3
{[%clk 0:02:55.7]} 5... Qxd5 {[%clk 0:02:52.3]} 6. e3 {[%clk 0:02:56.3]} 6... e5
{[%clk 0:02:52.8]} 7. Nc3 {[%clk 0:02:55.8]} 7... Bb4 {[%clk 0:02:53.5]} 8. Bd2
{[%clk 0:02:53.5]} 8... Bxc3 {[%clk 0:02:54.1]} 9. bxc3 {[%clk 0:02:53.9]} 9...
Nf6 {[%clk 0:02:54.2]} 10. c4 {[%clk 0:02:37.1]} 10... Qd6 {[%clk 0:02:54.2]}
11. d5 {[%clk 0:02:30.8]} 11... Nb8 {[%clk 0:02:53.7]} 12. Qb3 {[%clk
0:02:27.5]} 12... b6 {[%clk 0:02:25.7]} 13. Bb4 {[%clk 0:02:14.2]} 13... Qd7
{[%clk 0:02:24.8]} 14. h4 {[%clk 0:02:01.4]} 14... c5 {[%clk 0:01:59.9]} 15.
dxc6 {[%clk 0:01:50.6]} 15... Nxc6 {[%clk 0:01:59.8]} 16. Rd1 {[%clk 0:01:37.4]}
16... Qb7 {[%clk 0:01:47]} 17. Ba3 {[%clk 0:01:02.7]} 17... Rd8 {[%clk
0:01:38.3]} 18. Rxd8+ {[%clk 0:00:55.4]} 18... Kxd8 {[%clk 0:01:34.2]} 19. Bh3
{[%clk 0:00:53.8]} 19... Kc7 {[%clk 0:01:09.9]} 20. O-O {[%clk 0:00:48]} 20...
Rd8 {[%clk 0:00:52.3]} 21. c5 {[%clk 0:00:39.4]} 21... Kb8 {[%clk 0:00:51.1]}
22. cxb6 {[%clk 0:00:35.9]} 22... axb6 {[%clk 0:00:52]} 23. Rb1 {[%clk
0:00:35.3]} 23... Nd5 {[%clk 0:00:51.6]} 24. Bg2 {[%clk 0:00:32.4]} 24... f5
{[%clk 0:00:48.3]} 25. Rd1 {[%clk 0:00:17.2]} 25... Na5 {[%clk 0:00:29.8]} 26.
Qb5 {[%clk 0:00:16]} 26... Qd7 {[%clk 0:00:25.5]} 27. Qb1 {[%clk 0:00:10.4]}
27... Qc8 {[%clk 0:00:13.1]} 28. Qb2 {[%clk 0:00:04.3]} 28... Nc6 {[%clk
0:00:11.1]} 29. Rc1 {[%clk 0:00:04]} 29... Qb7 {[%clk 0:00:09.9]} 30. Qb5 {[%clk
0:00:03.7]} 30... Nde7 {[%clk 0:00:05.4]} 31. f4 {[%clk 0:00:02.7]} 31... e4
{[%clk 0:00:05.4]} 32. Bb2 {[%clk 0:00:03.1]} 32... Rd5 {[%clk 0:00:04.8]} 33.
Qb3 {[%clk 0:00:03.2]} 33... Qc7 {[%clk 0:00:04.7]} 34. Be5 {[%clk 0:00:02.7]}
34... Rxe5 {[%clk 0:00:03.3]} 35. fxe5 {[%clk 0:00:02.4]} 35... Qxe5 {[%clk
0:00:04]} 36. Qc2 {[%clk 0:00:01.7]} 36... Kb7 {[%clk 0:00:03.8]} 37. Rd1 {[%clk
0:00:02.3]} 37... Nd5 {[%clk 0:00:03.8]} 38. Qb3 {[%clk 0:00:02.3]} 38... Ndb4
{[%clk 0:00:04.3]} 39. Rd7+ {[%clk 0:00:02]} 39... Kc8 {[%clk 0:00:03.5]} 40.
Rf7 {[%clk 0:00:02.9]} 40... Nd3 {[%clk 0:00:04]} 41. Qc4 {[%clk 0:00:03.1]}
41... Qc5 {[%clk 0:00:03.8]} 42. Qe6+ {[%clk 0:00:03]} 42... Kb8 {[%clk
0:00:01.9]} 43. Qe8+ {[%clk 0:00:03.6]} 1-0

[Event "Late-Titled-Tuesday-Blitz-February-13-2024"]
[Site "Chess.com"]
[Date "2024.02.13"]
[Round "7"]
[White "johnmez"]
[Black "cukricek"]
[Result "0-1"]
[WhiteElo "2284"]
[BlackElo "2455"]
[TimeControl "180+1"]
[EndTime "15:18:21 PST"]
[Termination "cukricek won by checkmate"]

1. d4 {[%clk 0:03:00.9]} 1... Nf6 {[%clk 0:02:59.3]} 2. c4 {[%clk 0:03:01.3]}
2... g6 {[%clk 0:02:59.5]} 3. Nc3 {[%clk 0:03:01.2]} 3... d5 {[%clk 0:03:00.1]}
4. Nf3 {[%clk 0:02:58]} 4... Bg7 {[%clk 0:02:59.9]} 5. Bf4 {[%clk 0:02:56.5]}
5... O-O {[%clk 0:02:59.2]} 6. Rc1 {[%clk 0:02:56.5]} 6... c5 {[%clk 0:02:58.6]}
7. dxc5 {[%clk 0:02:51.6]} 7... Qa5 {[%clk 0:02:54.1]} 8. cxd5 {[%clk
0:02:44.2]} 8... Ne4 {[%clk 0:02:43.8]} 9. Be5 {[%clk 0:02:34.7]} 9... Nxc5
{[%clk 0:02:13.6]} 10. Bxg7 {[%clk 0:02:28.9]} 10... Kxg7 {[%clk 0:02:14.5]} 11.
Qd4+ {[%clk 0:02:28.7]} 11... f6 {[%clk 0:02:13.7]} 12. b4 {[%clk 0:02:26]}
12... Qa3 {[%clk 0:02:07.3]} 13. Rc2 {[%clk 0:02:06.6]} 13... Nca6 {[%clk
0:02:06.6]} 14. b5 {[%clk 0:01:33.9]} 14... Nb4 {[%clk 0:02:05.5]} 15. Rd2
{[%clk 0:01:33.8]} 15... Qc1+ {[%clk 0:01:59.7]} 16. Nd1 {[%clk 0:01:33.8]}
16... Nc2+ {[%clk 0:01:58]} 17. Rxc2 {[%clk 0:01:33.8]} 17... Qxc2 {[%clk
0:01:58.9]} 18. e4 {[%clk 0:01:32]} 18... Bg4 {[%clk 0:01:55.3]} 19. Be2 {[%clk
0:01:23.1]} 19... Nd7 {[%clk 0:01:51.4]} 20. Qe3 {[%clk 0:00:39.4]} 20... Bxf3
{[%clk 0:01:41]} 21. gxf3 {[%clk 0:00:37.2]} 21... Rfc8 {[%clk 0:01:30.9]} 22.
h4 {[%clk 0:00:32.8]} 22... Ne5 {[%clk 0:01:28.4]} 23. h5 {[%clk 0:00:30.5]}
23... g5 {[%clk 0:01:27.9]} 24. h6+ {[%clk 0:00:30.6]} 24... Kh8 {[%clk
0:01:20.9]} 25. f4 {[%clk 0:00:26]} 25... gxf4 {[%clk 0:01:16.5]} 26. Qxf4
{[%clk 0:00:26.1]} 26... Rg8 {[%clk 0:01:03.7]} 27. d6 {[%clk 0:00:24.3]} 27...
Qxa2 {[%clk 0:00:26.7]} 28. dxe7 {[%clk 0:00:21.1]} 28... Qf7 {[%clk 0:00:27.3]}
29. Ne3 {[%clk 0:00:18.2]} 29... Qxe7 {[%clk 0:00:24.8]} 30. Nd5 {[%clk
0:00:18.6]} 30... Qd6 {[%clk 0:00:18.8]} 31. f3 {[%clk 0:00:12.6]} 31... Rg6
{[%clk 0:00:14.5]} 32. Kf2 {[%clk 0:00:08.2]} 32... Rag8 {[%clk 0:00:12.8]} 33.
Rh2 {[%clk 0:00:08.6]} 33... Qc5+ {[%clk 0:00:11.4]} 34. Ne3 {[%clk 0:00:07]}
34... Qd4 {[%clk 0:00:06.9]} 35. b6 {[%clk 0:00:02.8]} 35... axb6 {[%clk
0:00:06.7]} 36. Bf1 {[%clk 0:00:03]} 36... b5 {[%clk 0:00:04.7]} 37. Bxb5 {[%clk
0:00:02.7]} 37... Qb2+ {[%clk 0:00:04]} 38. Be2 {[%clk 0:00:02.7]} 38... Nd3+
{[%clk 0:00:04.2]} 39. Kf1 {[%clk 0:00:01.7]} 39... Nxf4 {[%clk 0:00:05.1]} 40.
Nf5 {[%clk 0:00:01.5]} 40... Qc1+ {[%clk 0:00:04.4]} 41. Kf2 {[%clk 0:00:02.4]}
41... Qg1# {[%clk 0:00:03.6]} 0-1

[Event "Late-Titled-Tuesday-Blitz-February-13-2024"]
[Site "Chess.com"]
[Date "2024.02.13"]
[Round "7"]
[White "emeli_chess"]
[Black "Nouali_Mohamed"]
[Result "1-0"]
[WhiteElo "2406"]
[BlackElo "2552"]
[TimeControl "180+1"]
[EndTime "15:18:23 PST"]
[Termination "emeli_chess won by checkmate"]

1. d4 {[%clk 0:03:00.9]} 1... Nf6 {[%clk 0:02:59.4]} 2. c4 {[%clk 0:03:01.1]}
2... c5 {[%clk 0:02:59.6]} 3. d5 {[%clk 0:03:01.1]} 3... b5 {[%clk 0:03:00.1]}
4. cxb5 {[%clk 0:03:01.5]} 4... a6 {[%clk 0:03:00.6]} 5. b6 {[%clk 0:03:02.1]}
5... d6 {[%clk 0:02:59.9]} 6. Nc3 {[%clk 0:03:02.6]} 6... Nbd7 {[%clk
0:02:59.2]} 7. a4 {[%clk 0:03:02.7]} 7... Qxb6 {[%clk 0:02:53.6]} 8. a5 {[%clk
0:03:02.6]} 8... Qc7 {[%clk 0:02:38.5]} 9. e4 {[%clk 0:03:01.3]} 9... g6 {[%clk
0:02:37.4]} 10. Nf3 {[%clk 0:03:00.5]} 10... Bg7 {[%clk 0:02:36.7]} 11. Be2
{[%clk 0:03:00.8]} 11... O-O {[%clk 0:02:37.1]} 12. O-O {[%clk 0:03:01]} 12...
Rb8 {[%clk 0:02:37]} 13. Nd2 {[%clk 0:02:56.9]} 13... Rb4 {[%clk 0:02:34.4]} 14.
Re1 {[%clk 0:02:51.2]} 14... Ne5 {[%clk 0:02:07.7]} 15. h3 {[%clk 0:02:49]}
15... c4 {[%clk 0:01:59.3]} 16. Ra4 {[%clk 0:02:33.2]} 16... Rxa4 {[%clk
0:01:47.8]} 17. Qxa4 {[%clk 0:02:31.9]} 17... Bd7 {[%clk 0:01:48.2]} 18. Qa2
{[%clk 0:02:25.3]} 18... Rc8 {[%clk 0:01:22.5]} 19. Nf3 {[%clk 0:02:11]} 19...
Nxf3+ {[%clk 0:01:16.7]} 20. Bxf3 {[%clk 0:02:10.6]} 20... Rb8 {[%clk
0:01:11.5]} 21. Be3 {[%clk 0:02:06.3]} 21... Bb5 {[%clk 0:00:37]} 22. Bb6 {[%clk
0:02:03.3]} 22... Qc8 {[%clk 0:00:32.3]} 23. e5 {[%clk 0:01:54.2]} 23... dxe5
{[%clk 0:00:21.6]} 24. Rxe5 {[%clk 0:01:53.9]} 24... Nd7 {[%clk 0:00:21.5]} 25.
Rxe7 {[%clk 0:01:51]} 25... Nxb6 {[%clk 0:00:21.1]} 26. axb6 {[%clk 0:01:50.5]}
26... Rxb6 {[%clk 0:00:19.4]} 27. Qa1 {[%clk 0:01:33.2]} 27... Bf6 {[%clk
0:00:14.1]} 28. Re2 {[%clk 0:01:24.6]} 28... Bd7 {[%clk 0:00:13.2]} 29. Qe1
{[%clk 0:01:23.1]} 29... Kg7 {[%clk 0:00:11.7]} 30. Rd2 {[%clk 0:01:16.4]} 30...
Bf5 {[%clk 0:00:10.2]} 31. Qe3 {[%clk 0:01:15.6]} 31... Rb3 {[%clk 0:00:09.2]}
32. d6 {[%clk 0:01:13.4]} 32... Bd3 {[%clk 0:00:07.5]} 33. Rxd3 {[%clk
0:01:11.5]} 33... cxd3 {[%clk 0:00:08.4]} 34. Qxd3 {[%clk 0:01:11.5]} 34... Rxb2
{[%clk 0:00:07.5]} 35. d7 {[%clk 0:01:10.6]} 35... Qd8 {[%clk 0:00:06.5]} 36.
Ne4 {[%clk 0:01:09.4]} 36... Rb8 {[%clk 0:00:05.2]} 37. Nc5 {[%clk 0:01:06.2]}
37... a5 {[%clk 0:00:05.4]} 38. Bd5 {[%clk 0:01:04.5]} 38... Qe7 {[%clk
0:00:04.6]} 39. Qc4 {[%clk 0:01:01.4]} 39... Qe1+ {[%clk 0:00:04.2]} 40. Kh2
{[%clk 0:01:00.8]} 40... Be5+ {[%clk 0:00:04.2]} 41. f4 {[%clk 0:01:01]} 41...
Bd6 {[%clk 0:00:03.2]} 42. Ne4 {[%clk 0:00:58.4]} 42... Be7 {[%clk 0:00:02.9]}
43. Qd4+ {[%clk 0:00:58]} 43... f6 {[%clk 0:00:03.2]} 44. Nc5 {[%clk 0:00:44]}
44... Rb1 {[%clk 0:00:04.1]} 45. Ne6+ {[%clk 0:00:43.3]} 45... Kh8 {[%clk
0:00:04.6]} 46. g3 {[%clk 0:00:21.8]} 46... Qc1 {[%clk 0:00:03.4]} 47. Bg2
{[%clk 0:00:20.6]} 47... Rb2 {[%clk 0:00:04.3]} 48. d8=Q+ {[%clk 0:00:20]} 48...
Bxd8 {[%clk 0:00:04.7]} 49. Qxd8# {[%clk 0:00:20]} 1-0